fUSD/lending_fUSD_20250606
["ID","MTS","AMOUNT","RATE_DAILY","PERIOD"]
[364661532,1749187862754,-1271.08,0.00030164,7]
[364661533,1749187862763,-480.0,0.00030164,7]
[364661534,1749187862772,-480.0,0.00030164,7]
[364661535,1749187862782,-555.23119979,0.00030164,7]
[364661536,1749187862791,-480.0,0.00030164,7]
[364661537,1749187862800,-487.83162857,0.00030164,7]
[364661538,1749187862810,-754.86,0.00030164,7]
[364661539,1749187862819,-231.18973601,0.00030164,7]
[364661540,1749187862829,-480.0,0.00030164,7]
[364661541,1749187862838,-480.0,0.00030164,7]
[364661542,1749187862847,-903.5,0.00030164,7]
[364661543,1749187862857,-480.0,0.00030164,7]
[364661544,1749187862867,-480.0,0.00030164,7]
[364661545,1749187862877,-532.09,0.00030164,7]
[364661546,1749187862886,-465.79842775,0.00030164,7]
[364661547,1749187862896,-480.0,0.00030164,7]
[364661548,1749187862906,-464.30648307,0.00030164,7]
[364661549,1749187862916,-426.02679118,0.00030164,7]
[364661550,1749187862925,-480.0,0.00030164,7]
[364661551,1749187862934,-480.0,0.00030164,7]
[364661552,1749187862943,-480.0,0.00030164,7]
[364661553,1749187862954,-422.02823933,0.00030164,7]
[364661554,1749187862963,-482.77804812,0.00030164,7]
[364661555,1749187862973,-480.0,0.00030164,7]
[364661556,1749187862982,-159.135297,0.00030164,7]
[364661557,1749187862991,-463.17201538,0.00030164,7]
[364661558,1749187863002,-480.0,0.00030164,7]
[364661559,1749187863012,-153.52001343,0.00030164,2]
[364661560,1749187863023,-480.0,0.00030164,7]
[364661561,1749187863033,-480.0,0.00030164,7]
[364661562,1749187863044,-500.0,0.00030164,7]
[364661563,1749187863054,-480.0,0.00030164,7]
[364661564,1749187863064,-480.0,0.00030164,7]
[364661565,1749187863074,-485.50042967,0.00030164,7]
[364661566,1749187863084,-1262.22,0.00030164,7]
[364661567,1749187863094,-427.36215937,0.00030164,7]
[364661568,1749187863104,-480.0,0.00030164,7]
[364661569,1749187863114,-500.0,0.00030164,7]
[364661570,1749187863123,-480.0,0.00030164,7]
[364661571,1749187863133,-451.45346544,0.00030164,7]
[364661572,1749187863142,-500.0,0.00030164,2]
[364661573,1749187863152,-500.0,0.00030164,7]
[364661574,1749187863162,-500.0,0.00030164,7]
[364661575,1749187863171,-500.0,0.00030164,7]
[364661576,1749187863181,-500.0,0.00030164,7]
[364661577,1749187863191,-421.28293949,0.00030164,7]
[364661578,1749187863201,-500.0,0.00030164,7]
[364661579,1749187863211,-1306.31,0.00030164,7]
[364661580,1749187863220,-500.0,0.00030164,7]
[364661581,1749187863231,-480.0,0.00030164,7]
[364661582,1749187863241,-500.0,0.00030164,7]
[364661583,1749187863250,-500.0,0.00030164,7]
[364661584,1749187863260,-502.32635105,0.00030164,7]
[364661585,1749187863271,-480.0,0.00030164,7]
[364661586,1749187863280,-674.88,0.00030164,7]
[364661587,1749187863290,-480.0,0.00030164,7]
[364661588,1749187863301,-162.714515,0.00030164,7]
[364661589,1749187863310,-462.15104041,0.00030164,7]
[364661590,1749187863320,-153.84655,0.00030164,7]
[364661591,1749187863330,-480.0,0.00030164,7]
[364661592,1749187863342,-881.7,0.00030164,7]
[364661593,1749187863351,-484.14750242,0.00030164,7]
[364661594,1749187863362,-638.82,0.00030164,7]
[364661595,1749187863371,-434.35842698,0.00030164,7]
[364661596,1749187863382,-959.19,0.00030164,7]
[364661597,1749187863392,-482.97967059,0.00030164,7]
[364661598,1749187863402,-480.0,0.00030164,7]
[364661599,1749187863412,-480.0,0.00030164,7]
[364661600,1749187863423,-480.0,0.00030164,7]
[364661601,1749187863433,-1966.0,0.00030164,7]
[364661602,1749187863442,-480.0,0.00030164,7]
[364661603,1749187863452,-578.19,0.00030164,7]
[364661604,1749187863462,-480.0,0.00030164,7]
[364661605,1749187863472,-480.0,0.00030164,7]
[364661606,1749187863482,-480.0,0.00030164,7]
[364661607,1749187863492,-1589.58,0.00030164,7]
[364661608,1749187863502,-373.85584544,0.00030164,7]
[364661609,1749187863513,-502.03,0.00030164,7]
[364661610,1749187863523,-1168.22,0.00030164,7]
[364661611,1749187863533,-2737.9,0.00030164,7]
[364661612,1749187863543,-480.0,0.00030164,7]
[364661613,1749187863552,-1953.05,0.00030164,7]
[364661614,1749187863562,-480.0,0.00030164,7]
[364661615,1749187863572,-480.0,0.00030164,7]
[364661616,1749187863582,-480.0,0.00030164,7]
[364661617,1749187863592,-480.0,0.00030164,7]
[364661618,1749187863602,-832.69,0.00030164,7]
[364661619,1749187863612,-1000.0,0.00030164,21]
[364661620,1749187863622,-618.13316336,0.00030164,7]
[364661621,1749187863632,-7945.17,0.00030164,7]
[364661622,1749187863642,-735.38,0.00030164,7]
[364661623,1749187863653,-480.0,0.00030164,7]
[364661624,1749187863663,-480.0,0.00030164,7]
[364661625,1749187863673,-1005.06598888,0.00030164,7]
[364661626,1749187863683,-500.0,0.00030164,7]
[364661627,1749187863693,-7341.75,0.00030164,7]
[364661628,1749187863703,-480.0,0.00030164,7]
[364661629,1749187863713,-500.0,0.00030164,7]
[364661630,1749187863723,-81999.01,0.00030164,7]
[364661631,1749187863733,-500.0,0.00030164,7]
[364661632,1749187863743,-480.0,0.00030164,7]
[364661633,1749187863754,-500.0,0.00030164,7]
[364661634,1749187863764,-500.0,0.00030164,7]
[364661635,1749187863774,-500.0,0.00030164,7]
[364661636,1749187863784,-500.0,0.00030164,7]
[364661637,1749187863794,-428.50182905,0.00030164,7]
[364661638,1749187863804,-500.0,0.00030164,7]
[364661639,1749187863814,-3662.67,0.00030164,7]
[364661640,1749187863824,-500.0,0.00030164,7]
[364661641,1749187863834,-150.0,0.00030164,2]
[364661642,1749187863844,-480.0,0.00030164,7]
[364661643,1749187863854,-1174.28,0.00030164,7]
[364661644,1749187863865,-425.57769929,0.00030164,7]
[364661645,1749187863875,-500.0,0.00030164,7]
[364661646,1749187863885,-519.4362092,0.00030164,7]
[364661647,1749187863895,-150.0,0.00030164,2]
[364661648,1749187863905,-480.0,0.00030164,7]
[364661649,1749187863915,-483.0,0.00030164,7]
[364661650,1749187863925,-480.0,0.00030164,7]
[364661651,1749187863936,-239.93045498,0.00030164,7]
[364661652,1749187863946,-4426.81,0.00030164,7]
[364661653,1749187863956,-480.0,0.00030164,7]
[364661654,1749187863967,-480.0,0.00030164,7]
[364661655,1749187863977,-480.0,0.00030164,7]
[364661656,1749187863987,-480.0,0.00030164,7]
[364661657,1749187863998,-13954.29,0.00030164,7]
[364661658,1749187864008,-480.0,0.00030164,7]
[364661659,1749187864018,-1168.66,0.00030164,7]
[364661660,1749187864029,-914.37,0.00030164,7]
[364661661,1749187864039,-486.89178278,0.00030164,7]
[364661662,1749187864049,-2369.76,0.00030164,7]
[364661663,1749187864059,-762.27,0.00030164,7]
[364661664,1749187864070,-480.0,0.00030164,7]
[364661665,1749187864080,-872.38,0.00030164,7]
[364661666,1749187864091,-480.0,0.00030164,7]
[364661667,1749187864101,-480.0,0.00030164,7]
[364661668,1749187864112,-480.0,0.00030164,7]
[364661669,1749187864122,-934.48,0.00030164,7]
[364661670,1749187864132,-4080.67,0.00030164,7]
[364661671,1749187864142,-480.0,0.00030164,7]
[364661672,1749187864152,-480.0,0.00030164,7]
[364661673,1749187864163,-2250.41,0.00030164,7]
[364661674,1749187864174,-522.75,0.00030164,7]
[364661675,1749187864185,-480.0,0.00030164,7]
[364661676,1749187864196,-1421.96,0.00030164,7]
[364661677,1749187864206,-483.23743115,0.00030164,7]
[364661678,1749187864216,-1978.82,0.00030164,7]
[364661679,1749187864226,-480.0,0.00030164,7]
[364661680,1749187864236,-1409.06,0.00030164,7]
[364661681,1749187864246,-466.75274969,0.00030164,7]
[364661682,1749187864257,-480.0,0.00030164,7]
[364661683,1749187864267,-480.0,0.00030164,7]
[364661684,1749187864277,-480.0,0.00030164,2]
[364661685,1749187864288,-1510.55,0.00030164,7]
[364661686,1749187864297,-480.0,0.00030164,7]
[364661687,1749187864307,-480.0,0.00030164,7]
[364661688,1749187864317,-485.06729831,0.00030164,7]
[364661689,1749187864327,-187.24343611,0.00030164,7]
[364661690,1749187864341,-1168.31,0.00030164,7]
[364661691,1749187864352,-483.65379285,0.00030164,7]
[364661692,1749187864363,-1943.512849,0.00030164,7]
[364661693,1749187864374,-480.0,0.00030164,7]
[364661694,1749187864384,-1943.512849,0.00030164,7]
[364661695,1749187864395,-1313.62,0.00030164,7]
[364661696,1749187864405,-1943.512849,0.00030164,7]
[364661697,1749187864418,-481.29722211,0.00030164,7]
[364661698,1749187864428,-930.69,0.00030164,7]
[364661699,1749187864438,-2372.89,0.00030164,7]
[364661700,1749187864448,-157.889938,0.00030164,7]
[364661701,1749187864458,-1943.512849,0.00030164,7]
[364661702,1749187864479,-157.889938,0.00030164,7]
[364661703,1749187864490,-1943.512849,0.00030164,7]
[364661704,1749187864501,-157.889938,0.00030164,7]
[364661705,1749187864512,-426.57189992,0.00030164,7]
[364661706,1749187864523,-157.889938,0.00030164,7]
[364661707,1749187864534,-472.09909013,0.00030164,7]
[364661708,1749187864544,-843.83,0.00030164,7]
[364661709,1749187864555,-157.889938,0.00030164,7]
[364661710,1749187864566,-157.889938,0.00030164,7]
[364661711,1749187864577,-157.889938,0.00030164,7]
[364661712,1749187864588,-1943.512849,0.00030164,7]
[364661713,1749187864599,-157.889938,0.00030164,7]
[364661714,1749187864610,-1943.512849,0.00030164,7]
[364661715,1749187864622,-480.0,0.00030164,7]
[364661716,1749187864634,-480.0,0.00030164,7]
[364661717,1749187864645,-1943.512849,0.00030164,7]
[364661718,1749187864655,-1943.512849,0.00030164,7]
[364661719,1749187864666,-157.889938,0.00030164,7]
[364661720,1749187864676,-1943.51284937,0.00030164,7]
[364661721,1749187864687,-480.0,0.00030164,7]
[364661722,1749187864698,-157.889938,0.00030164,7]
[364661723,1749187864708,-157.889938,0.00030164,7]
[364661724,1749187864719,-157.889938,0.00030164,7]
[364661725,1749187864730,-157.889938,0.00030164,7]
[364661726,1749187864740,-365.30662621,0.00030164,7]
[364661727,1749187864751,-665.09,0.00030164,7]
[364661728,1749187864762,-480.0,0.00030164,7]
[364661729,1749187864773,-157.889938,0.00030164,7]
[364661730,1749187864783,-557.22684627,0.00030164,7]
[364661731,1749187864794,-157.889938,0.00030164,7]
[364661732,1749187864805,-426.71356169,0.00030164,7]
[364661733,1749187864816,-480.0,0.00030164,7]
[364661734,1749187864826,-157.889931,0.00030164,7]
[364661735,1749187864837,-1739.03,0.00030164,7]
[364661736,1749187864848,-2723.64,0.00030164,7]
[364661737,1749187864858,-480.0,0.00030164,7]
[364661738,1749187864869,-480.0,0.00030164,7]
[364661739,1749187864879,-504.63,0.00030164,7]
[364661740,1749187864889,-795.3,0.00030164,7]
[364661741,1749187864900,-569.07233809,0.00030164,7]
[364661742,1749187864910,-3870.48,0.00030164,7]
[364661743,1749187864921,-981.45,0.00030164,7]
[364661744,1749187864931,-2434.52,0.00030164,7]
[364661745,1749187864942,-1752.31,0.00030164,7]
[364661746,1749187864952,-751.51,0.00030164,7]
[364661747,1749187864963,-480.0,0.00030164,7]
[364661748,1749187864974,-480.0,0.00030164,7]
[364661749,1749187864984,-1908.77,0.00030164,7]
[364661750,1749187864994,-533.36196854,0.00030164,7]
[364661751,1749187865005,-485.47098484,0.00030164,7]
[364661752,1749187865015,-480.0,0.00030164,7]
[364661753,1749187865026,-481.12069552,0.00030164,7]
[364661754,1749187865036,-1305.61,0.00030164,7]
[364661755,1749187865047,-480.0,0.00030164,7]
[364661756,1749187865057,-557.21,0.00030164,7]
[364661757,1749187865067,-519.04,0.00030164,7]
[364661758,1749187865078,-492.5637342,0.00030164,7]
[364661759,1749187865088,-336.52710451,0.00030164,7]
[364661760,1749187865099,-2321.54,0.00030164,7]
[364661761,1749187865109,-480.0,0.00030164,7]
[364661762,1749187865120,-480.0,0.00030164,7]
[364661763,1749187865132,-480.0,0.00030164,7]
[364661764,1749187865143,-601.16,0.00030164,7]
[364661765,1749187865153,-480.0,0.00030164,7]
[364661766,1749187865163,-480.0,0.00030164,7]
[364661767,1749187865174,-4125.49,0.00030164,7]
[364661768,1749187865185,-1822.56,0.00030164,7]
[364661769,1749187865195,-318.6672608,0.00030164,7]
[364661770,1749187865205,-1591.07,0.00030164,7]
[364661771,1749187865215,-1000.0,0.00030164,15]
[364661772,1749187865226,-619.4,0.00030164,7]
[364661773,1749187865236,-6841.7,0.00030164,7]
[364661774,1749187865247,-481.3859118,0.00030164,7]
[364661775,1749187865258,-480.0,0.00030164,7]
[364661776,1749187865270,-480.0,0.00030164,7]
[364661777,1749187865479,-481.79838109,0.00030164,7]
[364661778,1749187865488,-2343.78,0.00030164,7]
[364661779,1749187865498,-912.81,0.00030164,7]
[364661780,1749187865507,-468.26953635,0.00030164,7]
[364661781,1749187865516,-480.0,0.00030164,7]
[364661782,1749187865525,-480.0,0.00030164,7]
[364661783,1749187865535,-3269.76,0.00030164,7]
[364661784,1749187865544,-1758.02,0.00030164,7]
[364661785,1749187865553,-480.0,0.00030164,7]
[364661786,1749187865562,-480.0,0.00030164,7]
[364661787,1749187865571,-498.08303476,0.00030164,7]
[364661788,1749187865582,-1145.33,0.00030164,7]
[364661789,1749187865591,-637.237544,0.00030164,7]
[364661790,1749187865600,-1145.33,0.00030164,7]
[364661791,1749187865610,-480.0,0.00030164,7]
[364661792,1749187865620,-1145.33,0.00030164,7]
[364661793,1749187865629,-637.237544,0.00030164,7]
[364661794,1749187865639,-1145.33,0.00030164,7]
[364661795,1749187865648,-1145.33,0.00030164,7]
[364661796,1749187865658,-637.237544,0.00030164,7]
[364661797,1749187865668,-1145.33,0.00030164,7]
[364661798,1749187865677,-637.237544,0.00030164,7]
[364661799,1749187865686,-1145.33,0.00030164,7]
[364661800,1749187865696,-480.0,0.00030164,2]
[364661801,1749187865705,-658.48,0.00030164,7]
[364661802,1749187865715,-1145.33,0.00030164,7]
[364661803,1749187865723,-637.237544,0.00030164,7]
[364661804,1749187865734,-1145.33,0.00030164,7]
[364661805,1749187865743,-1145.33,0.00030164,7]
[364661806,1749187865752,-947.63,0.00030164,7]
[364661807,1749187865762,-1145.33,0.00030164,7]
[364661808,1749187865771,-480.0,0.00030164,7]
[364661809,1749187865780,-4649.24,0.00030164,7]
[364661810,1749187865790,-1145.33,0.00030164,7]
[364661811,1749187865800,-1145.33,0.00030164,7]
[364661812,1749187865810,-485.51000896,0.00030164,7]
[364661813,1749187865819,-1145.33,0.00030164,7]
[364661814,1749187865829,-1145.33,0.00030164,7]
[364661815,1749187865838,-637.237544,0.00030164,7]
[364661816,1749187865847,-637.237544,0.00030164,7]
[364661817,1749187865857,-480.0,0.00030164,7]
[364661818,1749187865867,-637.237544,0.00030164,7]
[364661819,1749187865876,-486.80132487,0.00030164,7]
[364661820,1749187865886,-480.0,0.00030164,7]
[364661821,1749187865896,-637.237544,0.00030164,7]
[364661822,1749187865905,-637.23755,0.00030164,7]
[364661823,1749187865914,-5750.95,0.00030164,7]
[364661824,1749187865924,-591.32,0.00030164,7]
[364661825,1749187865933,-645.52,0.00030164,7]
[364661826,1749187865943,-208.634738,0.00030164,7]
[364661827,1749187865952,-480.0,0.00030164,7]
[364661828,1749187865962,-208.634738,0.00030164,7]
[364661829,1749187865971,-480.0,0.00030164,7]
[364661830,1749187865980,-208.634738,0.00030164,7]
[364661831,1749187865989,-420.82368815,0.00030164,2]
[364661832,1749187865998,-208.634738,0.00030164,7]
[364661833,1749187866007,-483.26868124,0.00030164,7]
[364661834,1749187866016,-208.634738,0.00030164,7]
[364661835,1749187866025,-2131.68,0.00030164,7]
[364661836,1749187866035,-585.0452618,0.00030164,7]
[364661837,1749187866044,-482.33315533,0.00030164,7]
[364661838,1749187866053,-4581.4,0.00030164,7]
[364661839,1749187866063,-480.0,0.00030164,7]
[364661840,1749187866072,-497.16955935,0.00030164,7]
[364661841,1749187866082,-1978.59,0.00030164,7]
[364661842,1749187866091,-480.0,0.00030164,7]
[364661843,1749187866100,-843.37,0.00030164,7]
[364661844,1749187866109,-480.0,0.00030164,7]
[364661845,1749187866118,-480.0,0.00030164,7]
[364661846,1749187866128,-5024.74,0.00030164,7]
[364661847,1749187866137,-2218.6,0.00030164,7]
[364661848,1749187866147,-480.0,0.00030164,7]
[364661849,1749187866157,-480.0,0.00030164,7]
[364661850,1749187866166,-492.42876876,0.00030164,7]
[364661851,1749187866175,-483.7380185,0.00030164,7]
[364661852,1749187866184,-1229.58,0.00030164,7]
[364661853,1749187866193,-376.314422,0.00030164,7]
[364661854,1749187866202,-642.65,0.00030164,7]
[364661855,1749187866212,-1374.66,0.00030164,7]
[364661856,1749187866221,-480.0,0.00030164,7]
[364661857,1749187866231,-376.314422,0.00030164,7]
[364661858,1749187866240,-1950.14,0.00030164,7]
[364661859,1749187866250,-376.314422,0.00030164,7]
[364661860,1749187866259,-376.314422,0.00030164,7]
[364661861,1749187866269,-2446.05,0.00030164,7]
[364661862,1749187866278,-208.634738,0.00030164,7]
[364661863,1749187866288,-2026.78,0.00030164,7]
[364661864,1749187866299,-376.314422,0.00030164,7]
[364661865,1749187866308,-208.634738,0.00030164,7]
[364661866,1749187866318,-208.634738,0.00030164,7]
[364661867,1749187866329,-208.634738,0.00030164,7]
[364661868,1749187866348,-208.634737,0.00030164,7]
[364661869,1749187866358,-482.74502455,0.00030164,7]
[364661870,1749187866367,-376.314422,0.00030164,7]
[364661871,1749187866377,-376.314422,0.00030164,7]
[364661872,1749187866387,-984.05,0.00030164,7]
[364661873,1749187866396,-480.0,0.00030164,7]
[364661874,1749187866406,-376.314422,0.00030164,7]
[364661875,1749187866415,-376.314422,0.00030164,7]
[364661876,1749187866425,-376.314413,0.00030164,7]
[364661877,1749187866435,-480.0,0.00030164,7]
[364661878,1749187866444,-1166.4,0.00030164,7]
[364661879,1749187866454,-480.0,0.00030164,7]
[364661880,1749187866463,-428.23911143,0.00030164,7]
[364661881,1749187866472,-2069.91,0.00030164,7]
[364661882,1749187866482,-2294.99,0.00030164,7]
[364661883,1749187866492,-480.0,0.00030164,7]
[364661884,1749187866501,-1527.49,0.00030164,7]
[364661885,1749187866511,-339.050092,0.00030164,7]
[364661886,1749187866520,-480.0,0.00030164,7]
[364661887,1749187866530,-2056.04,0.00030164,7]
[364661888,1749187866539,-339.050092,0.00030164,7]
[364661889,1749187866549,-339.050092,0.00030164,7]
[364661890,1749187866558,-339.050092,0.00030164,7]
[364661891,1749187866568,-11346.31,0.00030164,7]
[364661892,1749187866578,-6223.16,0.00030164,7]
[364661893,1749187866587,-480.0,0.00030164,7]
[364661894,1749187866597,-2433.5,0.00030164,7]
[364661895,1749187866606,-339.050092,0.00030164,7]
[364661896,1749187866615,-339.050092,0.00030164,7]
[364661897,1749187866625,-339.050092,0.00030164,7]
[364661898,1749187866634,-1377.21,0.00030164,7]
[364661899,1749187866644,-1014.46,0.00030164,7]
[364661900,1749187866654,-339.050096,0.00030164,7]
[364661901,1749187866663,-480.0,0.00030164,7]
[364661902,1749187866673,-437.289691,0.00030164,2]
[364661903,1749187866682,-649.09,0.00030164,7]
[364661904,1749187866692,-1666.44,0.00030164,7]
[364661905,1749187866702,-1074.2,0.00030164,7]
[364661906,1749187866711,-1451.12,0.00030164,7]
[364661907,1749187866721,-493.82174448,0.00030164,7]
[364661908,1749187866731,-2553.94,0.00030164,7]
[364661909,1749187866741,-5256.92,0.00030164,7]
[364661910,1749187866751,-480.0,0.00030164,7]
[364661911,1749187866760,-1641.07,0.00030164,7]
[364661912,1749187866770,-2964.95,0.00030164,7]
[364661913,1749187866780,-480.0,0.00030164,7]
[364661914,1749187866790,-480.0,0.00030164,7]
[364661915,1749187866800,-577.1,0.00030164,7]
[364661916,1749187866809,-480.0,0.00030164,7]
[364661917,1749187866819,-424.42628348,0.00030164,7]
[364661918,1749187866828,-480.0,0.00030164,7]
[364661919,1749187866837,-480.0,0.00030164,7]
[364661920,1749187866847,-2234.43,0.00030164,7]
[364661921,1749187866857,-480.0,0.00030164,7]
[364661922,1749187866866,-1415.9,0.00030164,7]
[364661923,1749187866876,-480.0,0.00030164,7]
[364661924,1749187866886,-1081.04,0.00030164,7]
[364661925,1749187866896,-500.0,0.00030164,7]
[364661926,1749187866906,-500.0,0.00030164,7]
[364661927,1749187866916,-1150.26,0.00030164,7]
[364661928,1749187866926,-500.0,0.00030164,7]
[364661929,1749187866936,-1000.0,0.00030164,7]
[364661930,1749187866945,-500.0,0.00030164,7]
[364661931,1749187866956,-500.0,0.00030164,7]
[364661932,1749187866965,-954.54,0.00030164,7]
[364661933,1749187866975,-500.0,0.00030164,7]
[364661934,1749187866984,-480.0,0.00030164,7]
[364661935,1749187866994,-500.0,0.00030164,7]
[364661936,1749187867003,-2463.45,0.00030164,7]
[364661937,1749187867013,-420.0,0.00030164,7]
[364661938,1749187867022,-500.0,0.00030164,7]
[364661939,1749187867031,-500.0,0.00030164,7]
[364661940,1749187867040,-500.0,0.00030164,7]
[364661941,1749187867049,-500.0,0.00030164,7]
[364661942,1749187867058,-480.0,0.00030164,7]
[364661943,1749187867068,-500.0,0.00030164,7]
[364661944,1749187867077,-4171.06,0.00030164,7]
[364661945,1749187867087,-150.0,0.00030164,7]
[364661946,1749187867097,-150.0,0.00030164,7]
[364661947,1749187867107,-480.0,0.00030164,7]
[364661948,1749187867117,-1360.1,0.00030164,7]
[364661949,1749187867126,-2106.24,0.00030164,7]
[364661950,1749187867136,-480.0,0.00030164,7]
[364661951,1749187867146,-480.0,0.00030164,7]
[364661952,1749187867155,-1907.45,0.00030164,7]
[364661953,1749187867164,-513.11890785,0.00030164,7]
[364661954,1749187867174,-555.17860144,0.00030164,7]
[364661955,1749187867183,-480.0,0.00030164,7]
[364661956,1749187867192,-480.0,0.00030164,7]
[364661957,1749187867201,-2221.58,0.00030164,7]
[364661958,1749187867210,-480.0,0.00030164,7]
[364661959,1749187867219,-1149.68,0.00030164,7]
[364661960,1749187867228,-690.02,0.00030164,7]
[364661961,1749187867237,-422.8077953,0.00030164,7]
[364661962,1749187867249,-2112.72,0.00030164,7]
[364661963,1749187867258,-480.0,0.00030164,7]
[364661964,1749187867267,-493.25963774,0.00030164,7]
[364661965,1749187867276,-289.77101876,0.00030164,7]
[364661966,1749187867285,-426.0577345,0.00030164,7]
[364661967,1749187867294,-2472.88,0.00030164,7]
[364661968,1749187867303,-480.0,0.00030164,7]
[364661969,1749187867312,-480.0,0.00030164,7]
[364661970,1749187867321,-480.0,0.00030164,7]
[364661971,1749187867331,-380.14017578,0.00030164,7]
[364661972,1749187867343,-480.0,0.00030164,7]
[364661973,1749187867352,-822.91,0.00030164,7]
[364661974,1749187867362,-480.0,0.00030164,7]
[364661975,1749187867371,-1235.21,0.00030164,7]
[364661976,1749187867382,-3874.69,0.00030164,7]
[364661977,1749187867392,-480.0,0.00030164,7]
[364661978,1749187867401,-480.0,0.00030164,7]
[364661979,1749187867411,-848.41,0.00030164,7]
[364661980,1749187867421,-480.0,0.00030164,7]
[364661981,1749187867429,-480.0,0.00030164,7]
[364661982,1749187867439,-2497.24,0.00030164,7]
[364661983,1749187867447,-480.0,0.00030164,7]
[364661984,1749187867457,-522.17166458,0.00030164,7]
[364661985,1749187867465,-480.0,0.00030164,7]
[364661986,1749187867475,-480.0,0.00030164,7]
[364661987,1749187867484,-17017.79,0.00030164,7]
[364661988,1749187867493,-10675.65,0.00030164,7]
[364661989,1749187867503,-800.76,0.00030164,7]
[364661990,1749187867512,-1264.89,0.00030164,7]
[364661991,1749187867521,-5092.66,0.00030164,7]
[364661992,1749187867530,-872.65,0.00030164,7]
[364661993,1749187867540,-480.0,0.00030164,7]
[364661994,1749187867550,-480.0,0.00030164,7]
[364661995,1749187867559,-480.0,0.00030164,7]
[364661996,1749187867569,-480.0,0.00030164,7]
[364661997,1749187867578,-480.0,0.00030164,7]
[364661998,1749187867588,-3353.82,0.00030164,7]
[364661999,1749187867597,-1252.83,0.00030164,7]
[364662000,1749187867606,-474.80200705,0.00030164,7]
[364662001,1749187867616,-482.95726208,0.00030164,7]
[364662002,1749187867625,-721.27,0.00030164,7]
[364662003,1749187867635,-480.0,0.00030164,7]
[364662004,1749187867644,-480.0,0.00030164,7]
[364662005,1749187867653,-506.06873661,0.00030164,7]
[364662006,1749187867662,-483.4190331,0.00030164,7]
[364662007,1749187867672,-480.0,0.00030164,7]
[364662008,1749187867682,-789.29,0.00030164,7]
[364662009,1749187867691,-432.69760027,0.00030164,7]
[364662010,1749187867701,-1614.56,0.00030164,7]
[364662011,1749187867711,-490.04368989,0.00030164,7]
[364662012,1749187867721,-300.0,0.00030164,7]
[364662013,1749187867731,-5244.54,0.00030164,7]
[364662014,1749187867741,-480.0,0.00030164,7]
[364662015,1749187867751,-480.0,0.00030164,7]
[364662016,1749187867760,-609.11,0.00030164,7]
[364662017,1749187867771,-480.0,0.00030164,7]
[364662018,1749187867781,-480.0,0.00030164,7]
[364662019,1749187867790,-2684.8,0.00030164,7]
[364662020,1749187867799,-404.98680034,0.00030164,7]
[364662021,1749187867809,-494.28,0.00030164,7]
[364662022,1749187867818,-1829.73,0.00030164,7]
[364662023,1749187867827,-487.53173442,0.00030164,7]
[364662024,1749187867836,-203.349527,0.00030164,7]
[364662025,1749187867846,-480.0,0.00030164,7]
[364662026,1749187867855,-203.349527,0.00030164,7]
[364662027,1749187867864,-488.19611162,0.00030164,7]
[364662028,1749187867874,-480.0,0.00030164,7]
[364662029,1749187867883,-480.0,0.00030164,7]
[364662030,1749187867892,-203.349527,0.00030164,7]
[364662031,1749187867902,-480.0,0.00030164,7]